Workbook

Sheet 入力画面
B1: 44287 | D1: 祝祭日等 | E1: 各校開校記念日 | F1: 県教委・教育事務所・総教センター | G1: 教育委員会 学校教育課 | H1: 各小中学校行事（修学旅行等） | I1: 教育委員会 教育総務課 | J1: 健康子育て課・いづみ幼稚園 | K1: 男鹿市 保健センター | L1: 男鹿市校長会 | M1: 男鹿潟上南秋教育研究会 | N1: 市教頭会 | O1: 事務の共同実施・事務研究会 | P1: 男鹿地区消防本部・男鹿署 | Q1: 男鹿潟上南秋地域生研 | R1: 郡市中学校体育連盟 | S1: 男鹿市学校保健会 | T1: 男鹿市ＰＴＡ連合会 | U1: 文化スポーツ課・生活環境課 | V1: 男鹿市体育協会 | W1: 男鹿潟上南秋学校給食協議会 | X1: 男鹿市の教育編集委員会 | Y1: 玄友会・行事調整委員会
B2: ４ 月
B3: 日 | C3: 曜 | D3: 事業（ 会 場 等 ） | E3: 事業（ 会 場 等 ） | F3: 事業（ 会 場 等 ） | G3: 事業（ 会 場 等 ） | H3: 事業（ 会 場 等 ） | I3: 事業（ 会 場 等 ） | J3: 事業（ 会 場 等 ） | K3: 事業（ 会 場 等 ） | L3: 事業（ 会 場 等 ） | M3: 事業（ 会 場 等 ） | N3: 事業（ 会 場 等 ） | O3: 事業（ 会 場 等 ） | P3: 事業（ 会 場 等 ） | Q3: 事業（ 会 場 等 ） | R3: 事業（ 会 場 等 ） | S3: 事業（ 会 場 等 ） | T3: 事業（ 会 場 等 ） | U3: 事業（ 会 場 等 ） | V3: 事業（ 会 場 等 ） | W3: 事業（ 会 場 等 ） | X3: 事業（ 会 場 等 ） | Y3: 事業（ 会 場 等 ）
B4: =$B$1 -> 2021-04-01 | C4: =$B$1 -> 44287
B5: =$B4+1 -> 2021-04-02 | C5: =$C4+1 -> 44288
B6: =$B5+1 -> 2021-04-03 | C6: =$C5+1 -> 44289
B7: =$B6+1 -> 2021-04-04 | C7: 44290
B8: 2021-04-05 | C8: 44291
B9: 2021-04-06 | C9: 44292
B10: 2021-04-07 | C10: 44293
B11: 2021-04-08 | C11: 44294
B12: 2021-04-09 | C12: 44295
B13: 2021-04-10 | C13: 44296
B14: 2021-04-11 | C14: 44297
B15: 2021-04-12 | C15: 44298
B16: 2021-04-13 | C16: 44299
B17: 2021-04-14 | C17: 44300
B18: 2021-04-15 | C18: 44301
B19: 2021-04-16 | C19: 44302
B20: 2021-04-17 | C20: 44303
B21: 2021-04-18 | C21: 44304
B22: 2021-04-19 | C22: 44305
B23: 2021-04-20 | C23: 44306
B24: 2021-04-21 | C24: 44307
B25: 2021-04-22 | C25: 44308
B26: 2021-04-23 | C26: 44309
B27: 2021-04-24 | C27: 44310
B28: 2021-04-25 | C28: 44311
B29: 2021-04-26 | C29: 44312
B30: 2021-04-27 | C30: 44313
B31: 2021-04-28 | C31: 44314
B32: 2021-04-29 | C32: 44315 | D32: 昭和の日
B33: 2021-04-30 | C33: 44316
B34: 【付記】
B36: ５ 月
B37: 日 | C37: 曜 | D37: 事業（ 会 場 等 ） | E37: 事業（ 会 場 等 ） | F37: 事業（ 会 場 等 ） | G37: 事業（ 会 場 等 ） | H37: 事業（ 会 場 等 ） | I37: 事業（ 会 場 等 ） | J37: 事業（ 会 場 等 ） | K37: 事業（ 会 場 等 ） | L37: 事業（ 会 場 等 ） | M37: 事業（ 会 場 等 ） | N37: 事業（ 会 場 等 ） | O37: 事業（ 会 場 等 ） | P37: 事業（ 会 場 等 ） | Q37: 事業（ 会 場 等 ） | R37: 事業（ 会 場 等 ） | S37: 事業（ 会 場 等 ） | T37: 事業（ 会 場 等 ） | U37: 事業（ 会 場 等 ） | V37: 事業（ 会 場 等 ） | W37: 事業（ 会 場 等 ） | X37: 事業（ 会 場 等 ） | Y37: 事業（ 会 場 等 ）
B38: =$B33+1 -> 2021-05-01 | C38: =$C33+1 -> 44317
B39: =$B38+1 -> 2021-05-02 | C39: =$C38+1 -> 44318
B40: 2021-05-03 | C40: 44319 | D40: 憲法記念日
B41: 2021-05-04 | C41: 44320 | D41: みどりの日
B42: 2021-05-05 | C42: 44321 | D42: こどもの日
B43: 2021-05-06 | C43: 44322
B44: 2021-05-07 | C44: 44323
B45: 2021-05-08 | C45: 44324
B46: 2021-05-09 | C46: 44325
B47: 2021-05-10 | C47: 44326
B48: 2021-05-11 | C48: 44327
B49: 2021-05-12 | C49: 44328
B50: 2021-05-13 | C50: 44329
B51: 2021-05-14 | C51: 44330
B52: 2021-05-15 | C52: 44331
B53: 2021-05-16 | C53: 44332
B54: 2021-05-17 | C54: 44333
B55: 2021-05-18 | C55: 44334
B56: 2021-05-19 | C56: 44335
B57: 2021-05-20 | C57: 44336
B58: 2021-05-21 | C58: 44337
B59: 2021-05-22 | C59: 44338
B60: 2021-05-23 | C60: 44339
B61: 2021-05-24 | C61: 44340
B62: 2021-05-25 | C62: 44341
B63: 2021-05-26 | C63: 44342
B64: 2021-05-27 | C64: 44343
B65: 2021-05-28 | C65: 44344
B66: 2021-05-29 | C66: 44345
B67: 2021-05-30 | C67: 44346
B68: 2021-05-31 | C68: 44347
B69: 【付記】
B70: ６ 月
B71: 日 | C71: 曜 | D71: 事業（ 会 場 等 ） | E71: 事業（ 会 場 等 ） | F71: 事業（ 会 場 等 ） | G71: 事業（ 会 場 等 ） | H71: 事業（ 会 場 等 ） | I71: 事業（ 会 場 等 ） | J71: 事業（ 会 場 等 ） | K71: 事業（ 会 場 等 ） | L71: 事業（ 会 場 等 ） | M71: 事業（ 会 場 等 ） | N71: 事業（ 会 場 等 ） | O71: 事業（ 会 場 等 ） | P71: 事業（ 会 場 等 ） | Q71: 事業（ 会 場 等 ） | R71: 事業（ 会 場 等 ） | S71: 事業（ 会 場 等 ） | T71: 事業（ 会 場 等 ） | U71: 事業（ 会 場 等 ） | V71: 事業（ 会 場 等 ） | W71: 事業（ 会 場 等 ） | X71: 事業（ 会 場 等 ） | Y71: 事業（ 会 場 等 ）
B72: =$B68+1 -> 2021-06-01 | C72: =$C68+1 -> 44348
B73: =$B72+1 -> 2021-06-02 | C73: =$C72+1 -> 44349
B74: 2021-06-03 | C74: 44350
B75: 2021-06-04 | C75: 44351
B76: 2021-06-05 | C76: 44352
B77: 2021-06-06 | C77: 44353
B78: 2021-06-07 | C78: 44354
B79: 2021-06-08 | C79: 44355
B80: 2021-06-09 | C80: 44356
B81: 2021-06-10 | C81: 44357
B82: 2021-06-11 | C82: 44358
B83: 2021-06-12 | C83: 44359
B84: 2021-06-13 | C84: 44360
B85: 2021-06-14 | C85: 44361
B86: 2021-06-15 | C86: 44362
B87: 2021-06-16 | C87: 44363
B88: 2021-06-17 | C88: 44364
B89: 2021-06-18 | C89: 44365
B90: 2021-06-19 | C90: 44366
B91: 2021-06-20 | C91: 44367
B92: 2021-06-21 | C92: 44368
B93: 2021-06-22 | C93: 44369
B94: 2021-06-23 | C94: 44370
B95: 2021-06-24 | C95: 44371
B96: 2021-06-25 | C96: 44372
B97: 2021-06-26 | C97: 44373
B98: 2021-06-27 | C98: 44374
B99: 2021-06-28 | C99: 44375
B100: 2021-06-29 | C100: 44376
B101: 2021-06-30 | C101: 44377
B102: 【付記】
B104: ７ 月
B105: 日 | C105: 曜 | D105: 事業（ 会 場 等 ） | E105: 事業（ 会 場 等 ） | F105: 事業（ 会 場 等 ） | G105: 事業（ 会 場 等 ） | H105: 事業（ 会 場 等 ） | I105: 事業（ 会 場 等 ） | J105: 事業（ 会 場 等 ） | K105: 事業（ 会 場 等 ） | L105: 事業（ 会 場 等 ） | M105: 事業（ 会 場 等 ） | N105: 事業（ 会 場 等 ） | O105: 事業（ 会 場 等 ） | P105: 事業（ 会 場 等 ） | Q105: 事業（ 会 場 等 ） | R105: 事業（ 会 場 等 ） | S105: 事業（ 会 場 等 ） | T105: 事業（ 会 場 等 ） | U105: 事業（ 会 場 等 ） | V105: 事業（ 会 場 等 ） | W105: 事業（ 会 場 等 ） | X105: 事業（ 会 場 等 ） | Y105: 事業（ 会 場 等 ）
B106: =$B101+1 -> 2021-07-01 | C106: =$C101+1 -> 44378
B107: =$B106+1 -> 2021-07-02 | C107: =$C106+1 -> 44379
B108: 2021-07-03 | C108: 44380
B109: 2021-07-04 | C109: 44381
B110: 2021-07-05 | C110: 44382
B111: 2021-07-06 | C111: 44383
B112: 2021-07-07 | C112: 44384
B113: 2021-07-08 | C113: 44385
B114: 2021-07-09 | C114: 44386
B115: 2021-07-10 | C115: 44387
B116: 2021-07-11 | C116: 44388
B117: 2021-07-12 | C117: 44389
B118: 2021-07-13 | C118: 44390
B119: 2021-07-14 | C119: 44391
B120: 2021-07-15 | C120: 44392
B121: 2021-07-16 | C121: 44393
B122: 2021-07-17 | C122: 44394
B123: =$B122+1 -> 2021-07-18 | C123: =$C122+1 -> 44395
B124: =$B123+1 -> 2021-07-19 | C124: =$C123+1 -> 44396
B125: 2021-07-20 | C125: 44397
B126: 2021-07-21 | C126: 44398
B127: 2021-07-22 | C127: 44399 | D127: 海の日
B128: 2021-07-23 | C128: 44400 | D128: スポーツの日
B129: 2021-07-24 | C129: 44401
B130: 2021-07-25 | C130: 44402
B131: 2021-07-26 | C131: 44403
B132: 2021-07-27 | C132: 44404
B133: 2021-07-28 | C133: 44405
B134: 2021-07-29 | C134: 44406
B135: 2021-07-30 | C135: 44407
B136: =$B135+1 -> 2021-07-31 | C136: =$C135+1 -> 44408
B137: 【付記】
B138: ８ 月
B139: 日 | C139: 曜 | D139: 事業（ 会 場 等 ） | E139: 事業（ 会 場 等 ） | F139: 事業（ 会 場 等 ） | G139: 事業（ 会 場 等 ） | H139: 事業（ 会 場 等 ） | I139: 事業（ 会 場 等 ） | J139: 事業（ 会 場 等 ） | K139: 事業（ 会 場 等 ） | L139: 事業（ 会 場 等 ） | M139: 事業（ 会 場 等 ） | N139: 事業（ 会 場 等 ） | O139: 事業（ 会 場 等 ） | P139: 事業（ 会 場 等 ） | Q139: 事業（ 会 場 等 ） | R139: 事業（ 会 場 等 ） | S139: 事業（ 会 場 等 ） | T139: 事業（ 会 場 等 ） | U139: 事業（ 会 場 等 ） | V139: 事業（ 会 場 等 ） | W139: 事業（ 会 場 等 ） | X139: 事業（ 会 場 等 ） | Y139: 事業（ 会 場 等 ）
B140: =$B136+1 -> 2021-08-01 | C140: =$C136+1 -> 44409
B141: =$B140+1 -> 2021-08-02 | C141: =$C140+1 -> 44410
B142: 2021-08-03 | C142: 44411
B143: 2021-08-04 | C143: 44412
B144: 2021-08-05 | C144: 44413
B145: 2021-08-06 | C145: 44414
B146: 2021-08-07 | C146: 44415
B147: 2021-08-08 | C147: 44416 | D147: 山の日
B148: 2021-08-09 | C148: 44417 | D148: 振替休日
B149: 2021-08-10 | C149: 44418
B150: 2021-08-11 | C150: 44419
B151: 2021-08-12 | C151: 44420
B152: 2021-08-13 | C152: 44421
B153: 2021-08-14 | C153: 44422
B154: 2021-08-15 | C154: 44423
B155: 2021-08-16 | C155: 44424
B156: 2021-08-17 | C156: 44425
B157: 2021-08-18 | C157: 44426
B158: 2021-08-19 | C158: 44427
B159: 2021-08-20 | C159: 44428
B160: 2021-08-21 | C160: 44429
B161: 2021-08-22 | C161: 44430
B162: 2021-08-23 | C162: 44431
B163: 2021-08-24 | C163: 44432
B164: 2021-08-25 | C164: 44433
B165: 2021-08-26 | C165: 44434
B166: 2021-08-27 | C166: 44435
B167: 2021-08-28 | C167: 44436
B168: 2021-08-29 | C168: 44437
B169: 2021-08-30 | C169: 44438
B170: 2021-08-31 | C170: 44439
B171: 【付記】
B172: ９ 月
B173: 日 | C173: 曜 | D173: 事業（ 会 場 等 ） | E173: 事業（ 会 場 等 ） | F173: 事業（ 会 場 等 ） | G173: 事業（ 会 場 等 ） | H173: 事業（ 会 場 等 ） | I173: 事業（ 会 場 等 ） | J173: 事業（ 会 場 等 ） | K173: 事業（ 会 場 等 ） | L173: 事業（ 会 場 等 ） | M173: 事業（ 会 場 等 ） | N173: 事業（ 会 場 等 ） | O173: 事業（ 会 場 等 ） | P173: 事業（ 会 場 等 ） | Q173: 事業（ 会 場 等 ） | R173: 事業（ 会 場 等 ） | S173: 事業（ 会 場 等 ） | T173: 事業（ 会 場 等 ） | U173: 事業（ 会 場 等 ） | V173: 事業（ 会 場 等 ） | W173: 事業（ 会 場 等 ） | X173: 事業（ 会 場 等 ） | Y173: 事業（ 会 場 等 ）
B174: =$B170+1 -> 2021-09-01 | C174: =$C170+1 -> 44440
B175: =$B174+1 -> 2021-09-02 | C175: =$C174+1 -> 44441
B176: 2021-09-03 | C176: 44442
B177: 2021-09-04 | C177: 44443
B178: 2021-09-05 | C178: 44444
B179: 2021-09-06 | C179: 44445
B180: 2021-09-07 | C180: 44446
B181: 2021-09-08 | C181: 44447
B182: 2021-09-09 | C182: 44448
B183: 2021-09-10 | C183: 44449
B184: 2021-09-11 | C184: 44450
B185: 2021-09-12 | C185: 44451
B186: 2021-09-13 | C186: 44452
B187: 2021-09-14 | C187: 44453
B188: 2021-09-15 | C188: 44454
B189: 2021-09-16 | C189: 44455
B190: 2021-09-17 | C190: 44456
B191: 2021-09-18 | C191: 44457
B192: 2021-09-19 | C192: 44458
B193: 2021-09-20 | C193: 44459 | D193: 敬老の日
B194: 2021-09-21 | C194: 44460
B195: 2021-09-22 | C195: 44461
B196: 2021-09-23 | C196: 44462 | D196: 秋分の日
B197: 2021-09-24 | C197: 44463
B198: 2021-09-25 | C198: 44464
B199: 2021-09-26 | C199: 44465
B200: 2021-09-27 | C200: 44466
B201: 2021-09-28 | C201: 44467
B202: 2021-09-29 | C202: 44468
... 203 more rows

Sheet 行事表
D1: 43922
B2: ４ 月 | D2: 2019-12-17
B3: 日 | C3: 曜 | D3: 事 業 （ 会 場 等 ） | E3: 備 考
B4: 2020-04-01 | C4: 43922
B5: 2020-04-02 | C5: 43923
B6: 2020-04-03 | C6: 43924
B7: 2020-04-04 | C7: 43925
B8: 2020-04-05 | C8: 43926
B9: 2020-04-06 | C9: 43927
B10: 2020-04-07 | C10: 43928
B11: 2020-04-08 | C11: 43929
B12: 2020-04-09 | C12: 43930
B13: 2020-04-10 | C13: 43931
B14: 2020-04-11 | C14: 43932
B15: 2020-04-12 | C15: 43933
B16: 2020-04-13 | C16: 43934
B17: 2020-04-14 | C17: 43935
B18: 2020-04-15 | C18: 43936
B19: 2020-04-16 | C19: 43937
B20: 2020-04-17 | C20: 43938
B21: 2020-04-18 | C21: 43939
B22: 2020-04-19 | C22: 43940
B23: 2020-04-20 | C23: 43941
B24: 2020-04-21 | C24: 43942
B25: 2020-04-22 | C25: 43943
B26: 2020-04-23 | C26: 43944
B27: 2020-04-24 | C27: 43945
B28: 2020-04-25 | C28: 43946
B29: 2020-04-26 | C29: 43947
B30: 2020-04-27 | C30: 43948
B31: 2020-04-28 | C31: 43949
A32: ■ | B32: 2020-04-29 | C32: 43950 | D32: 昭和の日
B33: 2020-04-30 | C33: 43951
B34: 【付記】
B36: ５ 月
B37: 日 | C37: 曜 | D37: 事 業 （ 会 場 等 ） | E37: 備 考
B38: 2020-05-01 | C38: 43952
B39: 2020-05-02 | C39: 43953
A40: ■ | B40: 2020-05-03 | C40: 43954 | D40: 憲法記念日
A41: ■ | B41: 2020-05-04 | C41: 43955 | D41: みどりの日
A42: ■ | B42: 2020-05-05 | C42: 43956 | D42: こどもの日
A43: ■ | B43: 2020-05-06 | C43: 43957 | D43: 振替休業日
B44: 2020-05-07 | C44: 43958
B45: 2020-05-08 | C45: 43959
B46: 2020-05-09 | C46: 43960
B47: 2020-05-10 | C47: 43961
B48: 2020-05-11 | C48: 43962
B49: 2020-05-12 | C49: 43963
B50: 2020-05-13 | C50: 43964
B51: 2020-05-14 | C51: 43965
B52: 2020-05-15 | C52: 43966
B53: 2020-05-16 | C53: 43967
B54: 2020-05-17 | C54: 43968
B55: 2020-05-18 | C55: 43969
B56: 2020-05-19 | C56: 43970
B57: 2020-05-20 | C57: 43971
B58: 2020-05-21 | C58: 43972
B59: 2020-05-22 | C59: 43973
B60: 2020-05-23 | C60: 43974
B61: 2020-05-24 | C61: 43975
B62: 2020-05-25 | C62: 43976
B63: 2020-05-26 | C63: 43977
B64: 2020-05-27 | C64: 43978
B65: 2020-05-28 | C65: 43979
B66: 2020-05-29 | C66: 43980
B67: 2020-05-30 | C67: 43981
B68: 2020-05-31 | C68: 43982
B69: 【付記】
B70: ６ 月
B71: 日 | C71: 曜 | D71: 事 業 （ 会 場 等 ） | E71: 備 考
B72: 2020-06-01 | C72: 43983
B73: 2020-06-02 | C73: 43984
B74: 2020-06-03 | C74: 43985
B75: 2020-06-04 | C75: 43986
B76: 2020-06-05 | C76: 43987
B77: 2020-06-06 | C77: 43988
B78: 2020-06-07 | C78: 43989
B79: 2020-06-08 | C79: 43990
B80: 2020-06-09 | C80: 43991
B81: 2020-06-10 | C81: 43992
B82: 2020-06-11 | C82: 43993
B83: 2020-06-12 | C83: 43994
B84: 2020-06-13 | C84: 43995
B85: 2020-06-14 | C85: 43996
B86: 2020-06-15 | C86: 43997
B87: 2020-06-16 | C87: 43998
B88: 2020-06-17 | C88: 43999
B89: 2020-06-18 | C89: 44000
B90: 2020-06-19 | C90: 44001
B91: 2020-06-20 | C91: 44002
B92: 2020-06-21 | C92: 44003
B93: 2020-06-22 | C93: 44004
B94: 2020-06-23 | C94: 44005
B95: 2020-06-24 | C95: 44006
B96: 2020-06-25 | C96: 44007
B97: 2020-06-26 | C97: 44008
B98: 2020-06-27 | C98: 44009
B99: 2020-06-28 | C99: 44010
B100: 2020-06-29 | C100: 44011
B101: 2020-06-30 | C101: 44012
B102: 【付記】
B104: ７ 月
B105: 日 | C105: 曜 | D105: 事 業 （ 会 場 等 ） | E105: 備 考
B106: 2020-07-01 | C106: 44013
B107: 2020-07-02 | C107: 44014
B108: 2020-07-03 | C108: 44015
B109: 2020-07-04 | C109: 44016
B110: 2020-07-05 | C110: 44017
B111: 2020-07-06 | C111: 44018
B112: 2020-07-07 | C112: 44019
B113: 2020-07-08 | C113: 44020
B114: 2020-07-09 | C114: 44021
B115: 2020-07-10 | C115: 44022
B116: 2020-07-11 | C116: 44023
B117: 2020-07-12 | C117: 44024
B118: 2020-07-13 | C118: 44025
B119: 2020-07-14 | C119: 44026
B120: 2020-07-15 | C120: 44027
B121: 2020-07-16 | C121: 44028
B122: 2020-07-17 | C122: 44029
B123: 2020-07-18 | C123: 44030
B124: 2020-07-19 | C124: 44031
B125: 2020-07-20 | C125: 44032
B126: 2020-07-21 | C126: 44033
B127: 2020-07-22 | C127: 44034
A128: ■ | B128: 2020-07-23 | C128: 44035 | D128: 海の日
A129: ■ | B129: 2020-07-24 | C129: 44036 | D129: スポーツの日
B130: 2020-07-25 | C130: 44037
B131: 2020-07-26 | C131: 44038
B132: 2020-07-27 | C132: 44039
B133: 2020-07-28 | C133: 44040
B134: 2020-07-29 | C134: 44041
B135: 2020-07-30 | C135: 44042
B136: 2020-07-31 | C136: 44043
B137: 【付記】
B138: ８ 月
B139: 日 | C139: 曜 | D139: 事 業 （ 会 場 等 ） | E139: 備 考
B140: 2020-08-01 | C140: 44044
B141: 2020-08-02 | C141: 44045
B142: 2020-08-03 | C142: 44046
B143: 2020-08-04 | C143: 44047
B144: 2020-08-05 | C144: 44048
B145: 2020-08-06 | C145: 44049
B146: 2020-08-07 | C146: 44050
B147: 2020-08-08 | C147: 44051
B148: 2020-08-09 | C148: 44052
A149: ■ | B149: 2020-08-10 | C149: 44053 | D149: 山の日
B150: 2020-08-11 | C150: 44054
B151: 2020-08-12 | C151: 44055
B152: 2020-08-13 | C152: 44056
B153: 2020-08-14 | C153: 44057
B154: 2020-08-15 | C154: 44058
B155: 2020-08-16 | C155: 44059
B156: 2020-08-17 | C156: 44060
B157: 2020-08-18 | C157: 44061
B158: 2020-08-19 | C158: 44062
B159: 2020-08-20 | C159: 44063
B160: 2020-08-21 | C160: 44064
B161: 2020-08-22 | C161: 44065
B162: 2020-08-23 | C162: 44066
B163: 2020-08-24 | C163: 44067
B164: 2020-08-25 | C164: 44068
B165: 2020-08-26 | C165: 44069
B166: 2020-08-27 | C166: 44070
B167: 2020-08-28 | C167: 44071
B168: 2020-08-29 | C168: 44072
B169: 2020-08-30 | C169: 44073
B170: 2020-08-31 | C170: 44074
B171: 【付記】
B172: ９ 月
B173: 日 | C173: 曜 | D173: 事 業 （ 会 場 等 ） | E173: 備 考
B174: 2020-09-01 | C174: 44075
B175: 2020-09-02 | C175: 44076
B176: 2020-09-03 | C176: 44077
B177: 2020-09-04 | C177: 44078
B178: 2020-09-05 | C178: 44079
B179: 2020-09-06 | C179: 44080
B180: 2020-09-07 | C180: 44081
B181: 2020-09-08 | C181: 44082
B182: 2020-09-09 | C182: 44083
B183: 2020-09-10 | C183: 44084
B184: 2020-09-11 | C184: 44085
B185: 2020-09-12 | C185: 44086
B186: 2020-09-13 | C186: 44087
B187: 2020-09-14 | C187: 44088
B188: 2020-09-15 | C188: 44089
B189: 2020-09-16 | C189: 44090
B190: 2020-09-17 | C190: 44091
B191: 2020-09-18 | C191: 44092
B192: 2020-09-19 | C192: 44093
B193: 2020-09-20 | C193: 44094
A194: ■ | B194: 2020-09-21 | C194: 44095 | D194: 敬老の日
A195: ■ | B195: 2020-09-22 | C195: 44096 | D195: 秋分の日
B196: 2020-09-23 | C196: 44097
B197: 2020-09-24 | C197: 44098
B198: 2020-09-25 | C198: 44099
B199: 2020-09-26 | C199: 44100
B200: 2020-09-27 | C200: 44101
B201: 2020-09-28 | C201: 44102
B202: 2020-09-29 | C202: 44103
... 202 more rows
